fUST/lending_fUST_20250608
["ID","MTS","AMOUNT","RATE_DAILY","PERIOD"]
[364994282,1749387035994,-322.8,0.00019452,2]
[364994283,1749387036003,-440.0,0.00019452,2]
[364994284,1749387036013,-440.0,0.00019452,2]
[364994285,1749387036023,-420.0,0.00019452,2]
[364994286,1749387036032,-440.0,0.00019452,2]
[364994287,1749387036042,-440.0,0.00019452,2]
[364994288,1749387036052,-440.0,0.00019452,2]
[364994289,1749387036062,-440.0,0.00019452,2]
[364994290,1749387036072,-440.0,0.00019452,2]
[364994291,1749387036081,-717.45,0.00019452,2]
[364994292,1749387036091,-1568.99,0.00019452,2]
[364994293,1749387036100,-771.02,0.00019452,2]
[364994294,1749387036110,-5270.98,0.00019452,2]
[364994295,1749387036121,-440.0,0.00019452,2]
[364994296,1749387036130,-272.48,0.00019452,2]
[364994297,1749387036142,-440.0,0.00019452,2]
[364994298,1749387036154,-440.0,0.00019452,2]
[364994299,1749387036164,-163.60431757,0.00019452,2]
[364994300,1749387036174,-440.0,0.00019452,2]
[364994301,1749387036184,-410.0,0.00019452,2]
[364994302,1749387036195,-440.0,0.00019452,2]
[364994303,1749387036205,-642.78,0.00019452,2]
[364994304,1749387036215,-3877.05,0.00019452,2]
[364994305,1749387036229,-440.0,0.00019452,2]
[364994306,1749387036239,-969.82,0.00019452,2]
[364994307,1749387036251,-2682.54,0.00019452,2]
[364994308,1749387036261,-553.81898444,0.00019452,2]
[364994309,1749387036271,-273.39942478,0.00019452,2]
[364994310,1749387036280,-440.0,0.00019452,2]
[364994311,1749387036290,-440.0,0.00019452,2]
[364994312,1749387036299,-440.0,0.00019452,2]
[364994313,1749387036310,-440.0,0.00019452,2]
[364994314,1749387036319,-266.01600023,0.00019452,2]
[364994315,1749387036329,-440.0,0.00019452,2]
[364994316,1749387036339,-440.0,0.00019452,2]
[364994317,1749387036349,-440.0,0.00019452,2]
[364994318,1749387036359,-440.0,0.00019452,2]
[364994319,1749387036370,-440.0,0.00019452,2]
[364994320,1749387036380,-440.0,0.00019452,2]
[364994321,1749387036390,-1212.89,0.00019452,2]
[364994322,1749387036400,-2559.93,0.00019452,2]
[364994323,1749387036409,-440.0,0.00019452,2]
[364994324,1749387036420,-440.0,0.00019452,2]
[364994325,1749387036429,-440.0,0.00019452,2]
[364994326,1749387036439,-440.0,0.00019452,2]
[364994327,1749387036450,-1887.69,0.00019452,2]
[364994328,1749387036460,-440.0,0.00019452,2]
[364994329,1749387036471,-440.0,0.00019452,2]
[364994330,1749387036481,-3688.68,0.00019452,2]
[364994331,1749387036492,-455.86,0.00019452,2]
[364994332,1749387036501,-440.0,0.00019452,2]
[364994333,1749387036513,-570.95,0.00019452,2]
[364994334,1749387036523,-440.0,0.00019452,2]
[364994335,1749387036533,-499.81,0.00019452,2]
[364994336,1749387036542,-440.0,0.00019452,2]
[364994337,1749387036554,-440.0,0.00019452,2]
[364994338,1749387036564,-440.0,0.00019452,2]
[364994339,1749387036574,-440.0,0.00019452,2]
[364994340,1749387036584,-440.0,0.00019452,2]
[364994341,1749387036594,-2620.54,0.00019452,2]
[364994342,1749387036604,-440.0,0.00019452,2]
[364994343,1749387036614,-440.0,0.00019452,2]
[364994344,1749387036624,-311.27431669,0.00019452,2]
[364994345,1749387036634,-440.0,0.00019452,2]
[364994346,1749387036643,-3461.52,0.00019452,2]
[364994347,1749387036654,-440.0,0.00019452,2]
[364994348,1749387036665,-2095.87,0.00019452,2]
[364994349,1749387036675,-718.43,0.00019452,2]
[364994350,1749387036685,-440.0,0.00019452,2]
[364994351,1749387036695,-440.0,0.00019452,2]
[364994352,1749387036705,-440.0,0.00019452,2]
[364994353,1749387036714,-440.0,0.00019452,2]
[364994354,1749387036725,-2802.22,0.00019452,2]
[364994355,1749387036735,-993.84,0.00019452,2]
[364994356,1749387036744,-440.0,0.00019452,2]
[364994357,1749387036754,-780.04,0.00019452,2]
[364994358,1749387036764,-440.0,0.00019452,2]
[364994359,1749387036774,-910.07,0.00019452,2]
[364994360,1749387036784,-440.0,0.00019452,2]
[364994361,1749387036793,-440.0,0.00019452,2]
[364994362,1749387036804,-502.94341378,0.0001946,2]
[364994363,1749387036814,-500.0,0.0001946,2]
[364994364,1749387036824,-512.21,0.00019675,2]
[364994365,1749387036835,-1321.37114984,0.00019694,2]
[364994366,1749387036845,-3420.6,0.00019721,2]
[364994367,1749387036855,-450.0,0.00019726,2]
[364994368,1749387036865,-440.0,0.00019726,2]
[364994369,1749387036874,-440.0,0.00019726,2]
[364994370,1749387036884,-310.22492835,0.00019726,2]
[364994371,1749387036894,-440.0,0.00019726,2]
[364994372,1749387036905,-319.10420053,0.00019726,2]
[364994373,1749387036915,-440.0,0.00019726,2]
[364994374,1749387036925,-335.87887607,0.00019726,2]
[364994375,1749387036935,-446.26725662,0.00019726,2]
[364994376,1749387036946,-440.0,0.00019726,2]
[364994377,1749387036956,-440.0,0.00019726,2]
[364994378,1749387036969,-440.0,0.00019726,2]
[364994379,1749387036979,-440.0,0.00019726,2]
[364994380,1749387036989,-440.0,0.00019726,2]
[364994381,1749387036999,-440.0,0.00019726,2]
[364994382,1749387037008,-440.0,0.00019726,2]
[364994383,1749387037019,-402.44220295,0.00019726,2]
[364994384,1749387037030,-440.0,0.00019726,2]
[364994385,1749387037041,-440.0,0.00019726,2]
[364994386,1749387037052,-440.0,0.00019726,2]
[364994387,1749387037063,-440.0,0.00019726,2]
[364994388,1749387037073,-440.0,0.00019726,2]
[364994389,1749387037083,-440.0,0.00019726,2]
[364994390,1749387037094,-440.0,0.00019726,2]
[364994391,1749387037103,-440.0,0.00019726,2]
[364994392,1749387037113,-160.30031139,0.00019726,2]
[364994393,1749387037124,-440.0,0.00019726,2]
[364994394,1749387037135,-440.0,0.00019726,2]
[364994395,1749387037149,-440.0,0.00019726,2]
[364994396,1749387037166,-440.0,0.00019726,2]
[364994397,1749387037183,-440.0,0.00019726,2]
[364994398,1749387037193,-430.0,0.00019726,2]
[364994399,1749387037203,-420.0,0.00019726,2]
[364994400,1749387037214,-440.0,0.00019726,2]
[364994401,1749387037226,-370.0,0.00019726,2]
[364994402,1749387037236,-440.0,0.00019726,2]
[364994403,1749387037246,-420.0,0.00019726,2]
[364994404,1749387037257,-440.0,0.00019726,2]
[364994405,1749387037267,-430.0,0.00019726,2]
[364994406,1749387037278,-400.0,0.00019726,2]
[364994407,1749387037288,-506.17206728,0.00019726,2]
[364994408,1749387037298,-497.4490882,0.00019726,2]
[364994409,1749387037309,-440.0,0.00019726,2]
[364994410,1749387037320,-211.71339719,0.00019726,2]
[364994411,1749387037330,-440.0,0.00019726,2]
[364994412,1749387037340,-262.34964914,0.00019726,2]
[364994413,1749387037351,-440.0,0.00019726,2]
[364994414,1749387037361,-440.0,0.00019726,2]
[364994415,1749387037371,-440.0,0.00019726,2]
[364994416,1749387037380,-426.44018176,0.00019726,2]
[364994417,1749387037391,-440.0,0.00019726,2]
[364994418,1749387037402,-440.0,0.00019726,2]
[364994419,1749387037412,-420.0,0.00019726,2]
[364994421,1749387037423,-440.0,0.00019726,2]
[364994422,1749387037433,-440.0,0.00019726,2]
[364994423,1749387037443,-440.0,0.00019726,2]
[364994424,1749387037454,-420.0,0.00019726,2]
[364994425,1749387037463,-440.0,0.00019726,2]
[364994426,1749387037474,-440.0,0.00019726,2]
[364994427,1749387037484,-440.0,0.00019726,2]
[364994428,1749387037495,-1099.04,0.00019726,2]
[364994429,1749387037505,-500.0,0.00019726,2]
[364994430,1749387037515,-440.0,0.00019726,2]
[364994431,1749387037526,-407.12544848,0.00019726,2]
[364994432,1749387037536,-440.0,0.00019726,2]
[364994433,1749387037546,-440.0,0.00019726,2]
[364994434,1749387037557,-440.0,0.00019726,2]
[364994435,1749387037567,-440.0,0.00019726,2]
[364994436,1749387037577,-440.0,0.00019726,2]
[364994437,1749387037587,-440.0,0.00019726,2]
[364994438,1749387037597,-1405.05,0.00019726,2]
[364994439,1749387037607,-440.0,0.00019726,2]
[364994440,1749387037617,-440.0,0.00019726,2]
[364994441,1749387037627,-440.0,0.00019726,2]
[364994443,1749387037636,-787.19,0.00019726,2]
[364994445,1749387037646,-440.0,0.00019726,2]
[364994447,1749387037657,-440.0,0.00019726,2]
[364994449,1749387037667,-440.0,0.00019726,2]
[364994451,1749387037677,-440.0,0.00019726,2]
[364994453,1749387037687,-440.0,0.00019726,2]
[364994455,1749387037698,-440.0,0.00019726,2]
[364994457,1749387037708,-440.0,0.00019726,2]
[364994459,1749387037718,-440.0,0.00019726,2]
[364994461,1749387037728,-440.0,0.00019726,2]
[364994463,1749387037738,-440.0,0.00019726,2]
[364994465,1749387037748,-440.0,0.00019726,2]
[364994467,1749387037759,-440.0,0.00019726,2]
[364994468,1749387037769,-440.0,0.00019726,2]
[364994469,1749387037784,-440.0,0.00019726,2]
[364994470,1749387037794,-1464.15,0.00019726,2]
[364994472,1749387037805,-440.0,0.00019726,2]
[364994473,1749387037815,-440.0,0.00019726,2]
[364994474,1749387037826,-440.0,0.00019726,2]
[364994475,1749387037836,-440.0,0.00019726,2]
[364994476,1749387037847,-440.0,0.00019726,2]
[364994477,1749387037857,-440.0,0.00019726,2]
[364994487,1749387037996,-440.0,0.00019726,2]
[364994488,1749387038008,-440.0,0.00019726,2]
[364994489,1749387038019,-440.0,0.00019726,2]
[364994490,1749387038028,-440.0,0.00019726,2]
[364994491,1749387038038,-440.0,0.00019726,2]
[364994492,1749387038049,-440.0,0.00019726,2]
[364994493,1749387038059,-440.0,0.00019726,2]
[364994494,1749387038070,-440.0,0.00019726,2]
[364994495,1749387038080,-717.45,0.00019726,2]
[364994496,1749387038090,-1568.99,0.00019726,2]
[364994497,1749387038100,-771.02,0.00019726,2]
[364994498,1749387038111,-5270.98,0.00019726,2]
[364994499,1749387038121,-440.0,0.00019726,2]
[364994500,1749387038131,-440.0,0.00019726,2]
[364994501,1749387038140,-440.0,0.00019726,2]
[364994502,1749387038154,-440.0,0.00019726,2]
[364994503,1749387038164,-642.78,0.00019726,2]
[364994504,1749387038173,-3877.05,0.00019726,2]
[364994505,1749387038183,-440.0,0.00019726,2]
[364994506,1749387038192,-969.82,0.00019726,2]
[364994507,1749387038203,-2682.54,0.00019726,2]
[364994508,1749387038212,-440.0,0.00019726,2]
[364994509,1749387038223,-440.0,0.00019726,2]
[364994511,1749387038232,-440.0,0.00019726,2]
[364994513,1749387038242,-440.0,0.00019726,2]
[364994515,1749387038251,-440.0,0.00019726,2]
[364994516,1749387038261,-440.0,0.00019726,2]
[364994518,1749387038270,-440.0,0.00019726,2]
[364994521,1749387038281,-440.0,0.00019726,2]
[364994522,1749387038291,-440.0,0.00019726,2]
[364994523,1749387038301,-440.0,0.00019726,2]
[364994524,1749387038311,-1212.89,0.00019726,2]
[364994525,1749387038322,-2559.93,0.00019726,2]
[364994527,1749387038332,-440.0,0.00019726,2]
[364994529,1749387038342,-440.0,0.00019726,2]
[364994531,1749387038352,-440.0,0.00019726,2]
[364994533,1749387038362,-440.0,0.00019726,2]
[364994535,1749387038371,-1887.69,0.00019726,2]
[364994536,1749387038381,-440.0,0.00019726,2]
[364994537,1749387038391,-440.0,0.00019726,2]
[364994538,1749387038400,-3688.68,0.00019726,2]
[364994539,1749387038410,-455.86,0.00019726,2]
[364994540,1749387038420,-440.0,0.00019726,2]
[364994541,1749387038430,-570.95,0.00019726,2]
[364994542,1749387038439,-412.86358554,0.00019726,2]
[364994543,1749387038449,-499.81,0.00019726,2]
[364994544,1749387038458,-405.17485453,0.00019726,2]
[364994545,1749387038468,-440.0,0.00019726,2]
[364994546,1749387038478,-398.64818622,0.00019726,2]
[364994547,1749387038487,-440.0,0.00019726,2]
[364994548,1749387038497,-294.40680792,0.00019726,2]
[364994549,1749387038506,-2620.54,0.00019726,2]
[364994550,1749387038516,-440.0,0.00019726,2]
[364994551,1749387038526,-440.0,0.00019726,2]
[364994552,1749387038535,-440.0,0.00019726,2]
[364994553,1749387038545,-3461.52,0.00019726,2]
[364994554,1749387038556,-440.0,0.00019726,2]
[364994555,1749387038567,-2095.87,0.00019726,2]
[364994556,1749387038578,-718.43,0.00019726,2]
[364994557,1749387038588,-440.0,0.00019726,2]
[364994558,1749387038598,-440.0,0.00019726,2]
[364994559,1749387038608,-440.0,0.00019726,2]
[364994560,1749387038618,-440.0,0.00019726,2]
[364994561,1749387038629,-2802.22,0.00019726,2]
[364994562,1749387038639,-993.84,0.00019726,2]
[364994563,1749387038649,-207.78000385,0.00019726,2]
[364994564,1749387038659,-780.04,0.00019726,2]
[364994565,1749387038670,-910.07,0.00019726,2]
[364994566,1749387038680,-440.0,0.00019726,2]
[364994567,1749387038690,-440.0,0.00019726,2]
[364994568,1749387038700,-306.0,0.00019726,2]
[364994569,1749387038710,-153.0,0.00019726,2]
[364994570,1749387038719,-153.0,0.00019726,2]
[364994571,1749387038729,-153.0,0.00019726,2]
[364994572,1749387038738,-153.0,0.00019726,2]
[364994573,1749387038748,-500.0,0.00019773,2]
[364994574,1749387038757,-501.49933829,0.00019773,2]
[364994575,1749387038767,-501.04038492,0.00019773,2]
[364994576,1749387038777,-500.0,0.00019773,2]
[364994577,1749387038786,-500.0,0.00019773,2]
[364994578,1749387038796,-500.0,0.00019773,2]
[364994579,1749387038807,-243.94881655,0.00019773,2]
[364994580,1749387038816,-500.0,0.00019773,2]
[364994581,1749387038826,-500.0,0.00019774,2]
[364994582,1749387038835,-153.0,0.00019781,2]
[364994583,1749387038844,-153.0,0.00019781,2]
[364994584,1749387038853,-2774.3,0.00019782,2]
[364994585,1749387038862,-2774.3,0.00019782,2]
[364994586,1749387038872,-2774.3,0.00019782,2]
[364994587,1749387038881,-2774.3,0.00019782,2]
[364994588,1749387038891,-2774.3,0.00019782,2]
[364994589,1749387038901,-2774.3,0.00019782,2]
[364994590,1749387038910,-2774.3,0.00019782,2]
[364994591,1749387038920,-2200.0,0.00019786,2]
[364994592,1749387038930,-500.0,0.0001989,2]
[364994593,1749387038939,-151.0,0.0001989,2]
[364994594,1749387038949,-500.0,0.0001989,2]
[364994595,1749387038958,-151.0,0.0001989,2]
[364994596,1749387038967,-151.0,0.0001989,2]
[364994597,1749387038976,-151.0,0.0001989,2]
[364994598,1749387038986,-500.0,0.0001989,2]
[364994599,1749387038995,-151.0,0.0001989,2]
[364994600,1749387039004,-151.0,0.0001989,2]
[364994601,1749387039014,-151.0,0.0001989,2]
[364994602,1749387039023,-151.24666928,0.0001989,2]
[364994603,1749387039032,-151.0,0.0001989,2]
[364994604,1749387039041,-151.0,0.0001989,2]
[364994605,1749387039051,-151.0,0.0001989,2]
[364994606,1749387039062,-500.0,0.0001989,2]
[364994607,1749387039072,-500.0,0.00019912,2]
[364994608,1749387039082,-504.25651522,0.00019912,2]
[364994609,1749387039092,-500.0,0.00019912,2]
[364994610,1749387039102,-500.0,0.00019912,2]
[364994611,1749387039111,-500.0,0.00019917,2]
[364994612,1749387039121,-151.0,0.00019917,2]
[364994613,1749387039130,-500.0,0.00019917,2]
[364994614,1749387039140,-151.0,0.00019917,2]
[364994615,1749387039153,-151.0,0.00019917,2]
[364994616,1749387039162,-151.0,0.00019917,2]
[364994617,1749387039171,-500.0,0.00019917,2]
[364994618,1749387039181,-198.0,0.00019917,2]
[364994619,1749387039190,-199.73141167,0.00019917,2]
[364994620,1749387039200,-151.0,0.00019917,2]
[364994621,1749387039210,-151.0,0.00019917,2]
[364994622,1749387039219,-151.0,0.00019917,2]
[364994623,1749387039230,-500.0,0.00019917,2]
[364994624,1749387039241,-500.0,0.00019921,2]
[364994625,1749387039250,-500.0,0.00019921,2]
[364994626,1749387039259,-500.0,0.00019945,2]
[364994627,1749387039269,-199.00046439,0.00019945,2]
[364994628,1749387039278,-500.0,0.00019945,2]
[364994629,1749387039288,-151.0,0.00019945,2]
[364994630,1749387039298,-151.0,0.00019945,2]
[364994631,1749387039308,-500.0,0.00019945,2]
[364994632,1749387039318,-199.60575174,0.00019945,2]
[364994633,1749387039328,-203.3482826,0.00019945,2]
[364994634,1749387039337,-198.0,0.00019945,2]
[364994635,1749387039347,-500.0,0.00019945,2]
[364994636,1749387039357,-500.0,0.00019948,2]
[364994637,1749387039367,-448.21050814,0.00019948,2]
[364994638,1749387039377,-500.0,0.00019948,2]
[364994639,1749387039387,-500.0,0.00019948,2]
[364994640,1749387039396,-500.0,0.00019948,2]
[364994641,1749387039407,-500.0,0.00019972,2]
[364994642,1749387039417,-500.0,0.00019972,2]
[364994643,1749387039428,-151.0,0.00019972,2]
[364994644,1749387039439,-245.0,0.00019972,2]
[364994645,1749387039448,-358.07390715,0.00019972,2]
[364994646,1749387039459,-506.91527344,0.00019972,2]
[364994647,1749387039468,-500.0,0.0002,2]
[364994648,1749387039478,-500.0,0.0002,2]
[364994649,1749387039488,-151.0,0.0002,2]
[364994650,1749387039497,-245.91617002,0.0002,3]
[364994651,1749387039507,-420.0,0.0002,2]
[364994652,1749387039517,-440.0,0.0002,2]
[364994653,1749387039527,-410.0,0.0002,2]
[364994654,1749387039537,-420.0,0.0002,2]
[364994655,1749387039547,-440.0,0.0002,2]
[364994656,1749387039557,-500.51196613,0.0002,2]
[364994657,1749387039567,-183.26,0.0002,2]
[364994658,1749387039581,-440.0,0.0002,2]
[364994659,1749387039591,-440.0,0.0002,2]
[364994660,1749387039602,-440.0,0.0002,2]
[364994661,1749387039611,-440.0,0.0002,2]
[364994662,1749387039621,-402.42,0.0002,2]
[364994663,1749387039630,-440.0,0.0002,2]
[364994664,1749387039641,-440.0,0.0002,2]
[364994665,1749387039651,-440.0,0.0002,2]
[364994666,1749387039661,-440.0,0.0002,2]
[364994667,1749387039671,-440.0,0.0002,2]
[364994668,1749387039681,-440.0,0.0002,2]
[364994669,1749387039690,-440.0,0.0002,2]
[364994670,1749387039700,-440.0,0.0002,2]
[364994671,1749387039710,-440.0,0.0002,2]
[364994672,1749387039720,-440.0,0.0002,2]
[364994673,1749387039730,-440.0,0.0002,2]
[364994674,1749387039740,-440.0,0.0002,2]
[364994675,1749387039749,-440.0,0.0002,2]
[364994676,1749387039759,-440.0,0.0002,2]
[364994677,1749387039771,-440.0,0.0002,2]
[364994678,1749387039780,-440.0,0.0002,2]
[364994679,1749387039791,-440.0,0.0002,2]
[364994680,1749387039803,-440.0,0.0002,2]
[364994681,1749387039918,-440.0,0.0002,2]
[364994682,1749387039928,-440.0,0.0002,2]
[364994683,1749387039938,-390.0,0.0002,2]
[364994684,1749387039947,-440.0,0.0002,2]
[364994685,1749387039957,-454.43680875,0.0002,2]
[364994686,1749387039967,-440.0,0.0002,2]
[364994687,1749387039977,-440.0,0.0002,2]
[364994688,1749387039987,-1099.04,0.0002,2]
[364994689,1749387039996,-440.0,0.0002,2]
[364994690,1749387040006,-440.0,0.0002,2]
[364994691,1749387040016,-440.0,0.0002,2]
[364994692,1749387040026,-474.74654054,0.0002,2]
[364994693,1749387040036,-440.0,0.0002,2]
[364994694,1749387040046,-440.0,0.0002,2]
[364994695,1749387040056,-440.0,0.0002,2]
[364994696,1749387040066,-1405.05,0.0002,2]
[364994697,1749387040076,-440.0,0.0002,2]
[364994698,1749387040085,-440.0,0.0002,2]
[364994699,1749387040095,-440.0,0.0002,2]
[364994700,1749387040105,-787.19,0.0002,2]
[364994701,1749387040121,-440.0,0.0002,2]
[364994702,1749387040132,-440.0,0.0002,2]
[364994703,1749387040145,-440.0,0.0002,2]
[364994704,1749387040156,-440.0,0.0002,2]
[364994705,1749387040167,-440.0,0.0002,2]
[364994706,1749387040177,-440.0,0.0002,2]
[364994707,1749387040187,-440.0,0.0002,2]
[364994708,1749387040196,-440.0,0.0002,2]
[364994709,1749387040206,-440.0,0.0002,2]
[364994710,1749387040214,-440.0,0.0002,2]
[364994711,1749387040225,-440.0,0.0002,2]
[364994712,1749387040234,-440.0,0.0002,2]
[364994713,1749387040243,-440.0,0.0002,2]
[364994714,1749387040252,-440.0,0.0002,2]
[364994715,1749387040261,-1464.15,0.0002,2]
[364994716,1749387040269,-440.0,0.0002,2]
[364994717,1749387040279,-420.04408824,0.0002,2]
[364994718,1749387040289,-440.0,0.0002,2]
[364994719,1749387040299,-440.0,0.0002,2]
[364994720,1749387040308,-440.0,0.0002,2]
[364994721,1749387040317,-440.0,0.0002,2]
[364994722,1749387040328,-440.0,0.0002,2]
[364994723,1749387040338,-440.0,0.0002,2]
[364994724,1749387040347,-440.0,0.0002,2]
[364994725,1749387040358,-440.0,0.0002,2]
[364994726,1749387040368,-440.0,0.0002,2]
[364994727,1749387040381,-440.0,0.0002,2]
[364994728,1749387040391,-440.0,0.0002,2]
[364994729,1749387040401,-440.0,0.0002,2]
[364994730,1749387040411,-717.45,0.0002,2]
[364994731,1749387040421,-1568.99,0.0002,2]
[364994732,1749387040431,-771.02,0.0002,2]
[364994733,1749387040441,-5270.98,0.0002,2]
[364994734,1749387040451,-440.0,0.0002,2]
[364994735,1749387040460,-440.0,0.0002,2]
[364994736,1749387040470,-440.0,0.0002,2]
[364994737,1749387040479,-379.31232696,0.0002,2]
[364994738,1749387040499,-60.68767304,0.0002,2]
[364994739,1749387040508,-642.78,0.0002,2]
[364994740,1749387040518,-3877.05,0.0002,2]
[364994741,1749387040527,-440.0,0.0002,2]
[364994742,1749387040537,-969.82,0.0002,2]
[364994743,1749387040548,-2682.54,0.0002,2]
[364994744,1749387040558,-440.0,0.0002,2]
[364994745,1749387040568,-440.0,0.0002,2]
[364994746,1749387040578,-216.95776634,0.0002,2]
[364994747,1749387040587,-440.0,0.0002,2]
[364994748,1749387040597,-589.09584801,0.0002,2]
[364994749,1749387040607,-440.0,0.0002,2]
[364994750,1749387040616,-540.03618205,0.0002,2]
[364994751,1749387040626,-440.0,0.0002,2]
[364994752,1749387040636,-440.0,0.0002,2]
[364994753,1749387040647,-440.0,0.0002,2]
[364994754,1749387040657,-1212.89,0.0002,2]
[364994755,1749387040667,-2559.93,0.0002,2]
[364994756,1749387040677,-440.0,0.0002,2]
[364994757,1749387040687,-440.0,0.0002,2]
[364994758,1749387040696,-440.0,0.0002,2]
[364994759,1749387040706,-440.0,0.0002,2]
[364994760,1749387040716,-1887.69,0.0002,2]
[364994761,1749387040725,-440.0,0.0002,2]
[364994762,1749387040735,-440.0,0.0002,2]
[364994763,1749387040744,-3688.68,0.0002,2]
[364994764,1749387040754,-455.86,0.0002,2]
[364994765,1749387040763,-383.96017812,0.0002,2]
[364994766,1749387040783,-570.95,0.0002,2]
[364994767,1749387040800,-499.81,0.0002,2]
[364994768,1749387040815,-440.0,0.0002,2]
[364994769,1749387040829,-440.0,0.0002,2]
[364994770,1749387040845,-2620.54,0.0002,2]
[364994771,1749387040861,-440.0,0.0002,2]
[364994772,1749387040878,-390.0,0.0002,2]
[364994773,1749387040894,-440.0,0.0002,2]
[364994774,1749387040910,-3461.52,0.0002,2]
[364994775,1749387040928,-440.0,0.0002,2]
[364994776,1749387040943,-2095.87,0.0002,2]
[364994777,1749387040958,-718.43,0.0002,2]
[364994778,1749387040970,-236.25,0.0002,2]
[364994779,1749387040986,-269.32061377,0.0002,2]
[364994780,1749387041001,-440.0,0.0002,2]
[364994781,1749387041015,-440.0,0.0002,2]
[364994782,1749387041026,-2802.22,0.0002,2]
[364994783,1749387041040,-993.84,0.0002,2]
[364994784,1749387041054,-780.04,0.0002,2]
[364994785,1749387041069,-910.07,0.0002,2]
[364994786,1749387041086,-440.0,0.0002,2]
[364994787,1749387041104,-440.0,0.0002,2]
[364994788,1749387041120,-500.0,0.00020027,2]
[364994789,1749387041137,-245.0,0.00020027,2]
[364994790,1749387041155,-1321.37114984,0.00020037,2]
[364994791,1749387041167,-160.0,0.00020053,3]
[364994792,1749387041179,-175.7,0.00020053,3]
[364994793,1749387041197,-175.7,0.00020053,3]
[364994794,1749387041213,-175.7,0.00020053,3]
[364994795,1749387041225,-175.7,0.00020053,3]
[364994796,1749387041238,-175.7,0.00020053,3]
[364994797,1749387041251,-175.7,0.00020053,3]
[364994798,1749387041265,-173.70319592,0.00020054,2]
[364994799,1749387041277,-236.859,0.00020154,2]
[364994800,1749387041289,-410.0,0.00020273,2]
[364994801,1749387041302,-440.0,0.00020273,2]
[364994802,1749387041316,-440.0,0.00020273,2]
[364994803,1749387041329,-400.0,0.00020273,2]
[364994804,1749387041342,-440.0,0.00020273,2]
[364994805,1749387041356,-440.0,0.00020273,2]
[364994806,1749387041369,-440.0,0.00020273,2]
[364994807,1749387041383,-440.0,0.00020273,2]
[364994808,1749387041395,-440.0,0.00020273,2]
[364994809,1749387041409,-440.0,0.00020273,2]
[364994810,1749387041422,-440.0,0.00020273,2]
[364994811,1749387041436,-440.0,0.00020273,2]
[364994812,1749387041449,-390.0,0.00020273,2]
[364994813,1749387041462,-440.0,0.00020273,2]
[364994814,1749387041475,-440.0,0.00020273,2]
[364994815,1749387041488,-440.0,0.00020273,2]
[364994816,1749387041501,-440.0,0.00020273,2]